bitfinex/quotes_SOLUSD_20220311
["timestamp","ask_amount","ask_price","bid_price","bid_amount"]
[1647016008831,46.5619,81.02,80.961,4.02962585]
[1647016009031,47.99879373,81.023,80.97,18.5147]
[1647016009438,18.5202,81.02,80.962,3.04447957]
[1647016009632,18.5202,81.02,80.942,3.04447957]
[1647016009832,46.835,81.019,80.942,3.04447957]
[1647016010432,51.837887,81.009,80.942,3.04447957]
[1647016010634,74.819987,81.009,80.942,3.04447957]
[1647016010833,74.819987,81.009,80.928,3.04447957]
[1647016011632,74.819987,81.009,80.932,163.7475]
[1647016012236,18.525,81.0,80.94,18.5245]
[1647016012631,74.819987,81.009,80.94,18.5245]
[1647016015239,18.5249,81.0,80.94,18.5245]
[1647016015439,123.5,80.999,80.92,18.5293]
[1647016015639,123.5,80.999,80.914,3.04447957]
[1647016015840,51.68954878,80.996,80.914,3.04447957]
[1647016016040,29.8564,80.995,80.914,3.04447957]
[1647016016240,23.6804,80.995,80.914,3.04447957]
[1647016016442,23.6804,80.995,80.915,27.43869255]
[1647016016839,23.6804,80.995,80.92,18.5301]
[1647016017045,23.6804,80.995,80.921,4.93119758]
[1647016017245,23.6804,80.995,80.921,35.4143697]
[1647016017445,23.6804,80.995,80.922,35.63063026]
[1647016017845,23.6804,80.995,80.923,3.04447957]
[1647016018042,23.6804,80.995,80.94,18.5232]
[1647016018245,23.8529,81.019,80.94,18.5232]
[1647016018444,23.8529,81.019,80.941,7.36597864]
[1647016018846,23.8529,81.019,80.942,3.04447957]
[1647016019144,47.1357472,81.018,80.96,18.5167]
[1647016020545,47.1357472,81.018,80.961,3.04447957]
[1647016021147,47.1357472,81.018,80.97,18.5192]
[1647016022651,23.8529,81.019,80.98,18.513]
[1647016023448,62.03325097,81.018,80.98,18.513]
[1647016024249,23.6804,81.037,80.98,21.55747957]
[1647016025349,54.76036707,81.036,80.98,21.55747957]
[1647016027952,23.6804,81.037,80.98,21.55747957]
[1647016028955,59.21117242,81.036,80.98,21.55747957]
[1647016029153,59.21117242,81.036,80.981,4.47153867]
[1647016029355,24.9268,81.059,80.99,18.5088]
[1647016029853,24.9268,81.059,80.991,3.04447957]
[1647016030352,48.58059571,81.058,81.01,18.5079]
[1647016036359,48.58059571,81.058,80.991,3.04447957]
[1647016036559,123.5,81.057,80.982,3.04447957]
[1647016036759,123.5,81.047,80.928,48.6349]
[1647016036961,6.173,81.046,80.928,48.6349]
[1647016037162,74.11,81.036,80.928,48.6349]
[1647016037361,123.5,81.019,80.928,48.6349]
[1647016037959,74.11,81.018,80.927,18.4084]
[1647016038161,123.5,81.017,80.927,18.4084]
[1647016038364,6.174,81.016,80.927,18.4084]
[1647016038563,6.174,81.016,80.903,24.6719]
[1647016038761,123.5,81.013,80.903,24.6719]
[1647016039062,123.5,81.007,80.903,43.3574]
[1647016039263,6.176,81.012,80.92,18.5305]
[1647016039264,123.5,80.997,80.92,18.5305]
[1647016039466,58.57640869,80.998,80.92,18.5305]
[1647016041990,58.57640869,80.998,80.922,5.35577535]
[1647016042187,58.57640869,80.998,80.94,18.5222]
[1647016042391,58.57640869,80.998,80.941,6.175]
[1647016042791,58.57640869,80.998,80.931,6.175]
[1647016043188,58.57640869,80.998,80.95,18.5234]
[1647016045091,58.57640869,80.998,80.94,18.5265]
[1647016046493,58.57640869,80.998,80.941,6.175]
[1647016046693,58.57640869,80.998,80.95,18.5247]
[1647016047395,58.57640869,80.998,80.931,6.174]
[1647016047595,58.57640869,80.998,80.911,6.174]
[1647016047796,58.57640869,80.998,80.94,18.5273]
[1647016048395,58.57640869,80.998,80.908,6.175]
[1647016048396,18.5273,80.99,80.908,6.175]
[1647016048595,48.8548,80.989,80.904,6.176]
[1647016049897,48.8548,80.989,80.93,18.5287]
[1647016050497,48.8548,80.989,80.931,6.175]
[1647016050698,48.8548,80.989,80.907,4.33414018]
[1647016050998,48.8548,80.989,80.908,6.176]
[1647016051197,48.8548,80.989,80.94,18.526]
[1647016052098,58.57640869,80.998,80.94,18.526]
[1647016054102,58.57640869,80.998,80.941,6.175]
[1647016055104,18.5275,80.99,80.941,6.175]
[1647016056406,24.8136,80.997,80.941,6.175]
[1647016056607,24.8136,80.997,80.95,18.5245]
[1647016057706,18.5271,80.99,80.94,18.5263]
[1647016059407,18.5271,80.99,80.93,18.5288]
[1647016060710,18.5271,80.99,80.931,6.175]
[1647016060908,18.5271,80.99,80.94,18.5268]
[1647016062509,24.8136,80.997,80.94,18.5268]
[1647016063409,24.8136,80.997,80.95,18.525]
[1647016065012,24.8136,80.997,80.94,18.5266]
[1647016065213,24.8136,80.997,80.941,6.175]
[1647016065816,24.8136,80.997,80.928,6.175]
[1647016066042,18.5271,80.99,80.94,18.5266]
[1647016066413,24.8136,80.997,80.94,18.5266]
[1647016067113,24.8136,80.997,80.95,18.5241]
[1647016068616,24.8136,80.997,80.94,18.526]
[1647016068817,24.8136,80.997,80.941,6.175]
[1647016069218,18.5273,80.99,80.941,6.175]
[1647016069418,123.5,80.988,80.903,18.6855]
[1647016069617,123.5,80.986,80.9,6.44833664]
[1647016070018,197.61,80.978,80.887,6.177]
[1647016070519,197.61,80.967,80.887,6.177]
[1647016070818,204.68,80.967,80.887,6.177]
[1647016071022,123.5,80.965,80.887,6.177]
[1647016071417,17.045,80.95,80.887,6.177]
[1647016071619,24.6947,80.949,80.887,6.177]
[1647016071818,57.01044262,80.948,80.888,24.23027145]
[1647016072018,57.01044262,80.948,80.89,18.5388]
[1647016073419,24.6947,80.949,80.89,18.5388]
[1647016073820,1.63140746,81.0,80.891,3.04447957]
[1647016074024,24.6947,80.988,80.91,18.5218]
[1647016074422,47.54555083,80.987,80.911,1.96319579]
[1647016075025,47.54555083,80.987,80.93,18.5256]
[1647016079539,174.09747826,81.04,80.93,18.5256]
[1647016079737,48.1446,81.022,80.931,8.00392911]
[1647016079940,6.174,81.021,80.95,18.517]
[1647016080139,48.1446,81.022,80.95,18.517]
[1647016080541,97.34883994,81.022,80.951,5.00767536]
[1647016080740,97.34883994,81.022,80.951,9.65196592]
[1647016080939,97.34883994,81.022,80.97,18.5146]
[1647016081153,97.34883994,81.022,80.971,24.23027145]
[1647016082756,97.34883994,81.022,80.96,61.7152]
[1647016082960,97.34883994,81.022,80.952,3.04447957]
[1647016083159,123.5,81.021,80.952,3.04447957]
[1647016083964,148.194,81.02,80.95,18.5244]
[1647016084961,148.194,81.02,80.94,18.5265]
[1647016085160,151.23847957,81.02,80.94,18.5265]
[1647016085562,123.5,81.018,80.94,18.5265]
[1647016085762,142.0266,81.0,80.94,18.5265]
[1647016085963,123.5,80.998,80.92,18.531]
[1647016086262,123.5,80.996,80.9,61.7673]
[1647016086864,123.5,80.994,80.9,61.7673]
[1647016087064,18.5334,80.98,80.9,61.7673]
[1647016087266,58.11119467,80.979,80.92,18.5314]
[1647016087664,123.5,80.978,80.889,3.04447957]
[1647016087866,147.3828,80.978,80.889,3.04447957]
[1647016088265,147.3828,80.978,80.88,61.781]
[1647016088466,221.4928,80.978,80.88,80.6344]
[1647016088672,3.04447957,80.977,80.88,83.67887957]
[1647016088872,123.5,80.976,80.88,83.67887957]
[1647016089076,18.5322,80.97,80.9,18.5357]
[1647016089276,129.676,80.969,80.88,18.8534]
[1647016089675,123.5,80.967,80.88,18.8534]
[1647016089878,123.5,80.965,80.88,18.8534]
[1647016090079,123.5,80.961,80.87,3.04447957]
[1647016090278,74.11,80.95,80.858,3.04447957]
[1647016090479,74.11,80.95,80.853,18.9858]
[1647016090480,123.5,80.935,80.807,24.4517]
[1647016090680,123.5,80.927,80.82,12.90079149]
[1647016090881,53.2314,80.934,80.818,563.24814399]
[1647016090882,74.11,80.922,80.818,563.24814399]
[1647016091083,123.5,80.913,80.818,530.97245075]
[1647016091283,123.5,80.907,80.818,530.97245075]
[1647016091480,123.5,80.899,80.818,530.97245075]
[1647016091683,123.5,80.897,80.818,530.97245075]
[1647016091878,123.5,80.895,80.818,530.97245075]
[1647016092079,123.5,80.893,80.818,530.97245075]
[1647016092306,123.5,80.893,80.81,18.5559]
[1647016092508,123.5,80.891,80.81,18.5559]
[1647016092711,123.5,80.879,80.8,18.558]
[1647016092909,60.29963407,80.878,80.8,18.558]
[1647016093108,123.5,80.877,80.8,18.558]
[1647016093710,123.5,80.877,80.81,18.5558]
[1647016094513,60.29963407,80.878,80.81,18.5558]
[1647016097315,6.184,80.877,80.81,18.5558]
[1647016098116,60.29963407,80.878,80.81,18.5558]
[1647016098918,123.5,80.877,80.8,18.5586]
[1647016099324,123.5,80.877,80.799,19.44533788]
[1647016100218,123.5,80.877,80.793,18.4216]
[1647016101119,60.29963407,80.878,80.793,18.4216]
[1647016101120,123.5,80.875,80.793,18.4216]
[1647016101320,60.29963407,80.878,80.793,18.4216]
[1647016101321,123.5,80.873,80.793,18.4216]
[1647016102223,123.5,80.873,80.8,18.5566]
[1647016102421,123.5,80.876,80.8,18.5566]
[1647016102621,123.5,80.874,80.8,18.5566]
[1647016102825,123.5,80.872,80.8,18.5566]
[1647016103023,123.5,80.872,80.793,18.4216]
[1647016103223,123.5,80.87,80.792,21.69371966]
[1647016103424,123.5,80.868,80.8,18.5586]
[1647016103622,123.5,80.868,80.792,21.69371966]
[1647016103823,123.5,80.866,80.783,25.25545724]
[1647016104127,123.5,80.864,80.783,25.25545724]
[1647016104524,123.5,80.864,80.783,44.12985724]
[1647016104726,123.5,80.862,80.784,21.05941813]
[1647016104925,123.5,80.862,80.79,18.5592]
[1647016105524,123.5,80.862,80.784,21.05941813]
[1647016105926,123.5,80.862,80.784,46.31487537]
[1647016108230,52.12282014,80.863,80.801,5.13404911]
[1647016110332,52.12282014,80.863,80.81,18.5566]
[1647016110934,123.5,80.862,80.81,18.5566]
[1647016111663,123.5,80.862,80.783,18.8744]
[1647016111860,129.686,80.862,80.75,14.42]
[1647016112061,123.5,80.86,80.765,25.25545724]
[1647016112464,123.5,80.86,80.772,19.50852691]
[1647016112761,142.0609,80.86,80.772,19.50852691]
[1647016112963,18.5609,80.86,80.773,25.25545724]
[1647016113162,6.186,80.859,80.773,25.25545724]
[1647016113363,23.1901,80.861,80.773,28.29993681]
[1647016113569,23.1901,80.861,80.774,3.04447957]
[1647016113766,23.1901,80.861,80.81,18.557]
[1647016115767,123.5,80.86,80.81,18.557]
[1647016115966,123.5,80.86,80.779,25.25545724]
[1647016116166,142.0609,80.86,80.779,25.25545724]
[1647016116766,23.1901,80.861,80.78,27.99606154]
[1647016116966,23.1901,80.861,80.81,18.5573]
[1647016117569,23.1901,80.861,80.781,3.04447957]
[1647016117766,123.5,80.86,80.76,14.42]
[1647016117967,123.5,80.86,80.768,138.25545724]
[1647016118167,123.5,80.86,80.776,24.05421606]
[1647016118366,148.2461,80.86,80.79,18.5619]
[1647016120071,148.2461,80.86,80.79,20.70115118]
[1647016122675,129.686,80.86,80.79,2.13925118]
[1647016122873,23.1901,80.861,80.79,2.13925118]
[1647016123173,52.12282014,80.863,80.791,3.04447957]
[1647016123374,52.12282014,80.863,80.791,7.89240309]
[1647016123572,52.12282014,80.863,80.792,25.25545724]
[1647016123872,52.12282014,80.863,80.79,2.13925118]
[1647016124674,52.12282014,80.863,80.791,3.04447957]
[1647016124974,52.12282014,80.863,80.81,18.5582]
[1647016128078,123.5,80.862,80.81,18.5582]
[1647016130084,123.5,80.859,80.81,18.5582]
[1647016131587,18.5581,80.86,80.81,18.5582]
[1647016131785,52.12282014,80.863,80.81,18.5582]
[1647016134792,52.12282014,80.863,80.786,3.04447957]
[1647016134992,30.7895,80.862,80.76,14.42]
[1647016135192,18.5581,80.86,80.772,3.04447957]
[1647016135795,18.5581,80.86,80.8,18.5595]
[1647016135996,18.5581,80.86,80.781,24.89103631]
[1647016136398,18.5581,80.86,80.781,21.84655674]
[1647016137198,18.5581,80.86,80.8,18.5605]
[1647016137816,18.5581,80.86,80.781,21.84655674]
[1647016137817,74.11,80.859,80.781,21.84655674]
[1647016138024,74.11,80.849,80.781,21.84655674]
[1647016138219,86.39631263,80.848,80.781,21.84655674]
[1647016138420,6.187,80.847,80.781,21.84655674]
[1647016138620,6.187,80.847,80.78,18.5657]
[1647016139021,18.5669,80.84,80.78,18.5657]
[1647016139320,6.187,80.847,80.774,6.187]
[1647016139523,86.39631263,80.848,80.782,19.01874832]
[1647016139720,86.39631263,80.848,80.783,6.186]
[1647016140525,86.39631263,80.848,80.782,19.01874832]
[1647016140722,86.39631263,80.848,80.784,3.04447957]
[1647016142124,18.5628,80.84,80.784,3.04447957]
[1647016142326,86.39631263,80.848,80.784,3.04447957]
[1647016143524,22.5439,80.877,80.785,6.186]
[1647016143727,29.2961,80.876,80.81,18.5582]
[1647016144324,18.5568,80.87,80.81,18.5582]
[1647016146829,18.5568,80.87,80.81,24.7422]
[1647016148434,18.5568,80.87,80.81,18.5582]
[1647016149132,18.5568,80.87,80.811,22.32095996]
[1647016151536,18.5568,80.87,80.811,28.50495996]
[1647016152537,18.5568,80.87,80.811,22.32095996]
[1647016152935,47.13179067,80.875,80.82,18.5564]
[1647016154339,18.5559,80.87,80.81,18.5578]
[1647016154548,74.11,80.869,80.798,6.184]
[1647016154740,74.11,80.869,80.779,3.04447957]
[1647016154942,80.296,80.868,80.78,6.186]
[1647016155141,99.86839477,80.868,80.78,6.186]
[1647016155342,3.04447957,80.867,80.781,22.80393984]
[1647016155541,51.71416263,80.859,80.79,18.5617]
[1647016155742,51.71416263,80.859,80.791,6.186]
[1647016155942,51.71416263,80.859,80.791,3.04447957]
[1647016156145,51.71416263,80.859,80.792,6.186]
[1647016156441,24.3438,80.866,80.792,34.48593681]
[1647016156641,24.3438,80.866,80.81,18.5585]
[1647016156843,24.3438,80.866,80.811,6.184]
[1647016157444,24.3438,80.866,80.812,3.3895274]
[1647016157646,6.184,80.896,80.82,18.5537]
[1647016157945,22.558,80.895,80.821,6.183]
[1647016158147,6.183,80.894,80.814,6.183]
[1647016158347,22.558,80.895,80.821,3.04447957]
[1647016158548,22.558,80.895,80.822,9.22747957]
[1647016158750,18.5513,80.89,80.822,3.04447957]
[1647016158946,74.11,80.889,80.788,3.04447957]
[1647016159147,1.63140746,80.886,80.761,24.3395]
[1647016159348,1.63140746,80.884,80.768,3.04447957]
[1647016159548,14.42,80.88,80.774,24.28285646]
[1647016159745,18.5658,80.87,80.78,18.5641]
[1647016159946,63.96204949,80.868,80.78,18.5641]
[1647016160147,6.186,80.867,80.78,18.5641]
[1647016160348,13.806,80.867,80.78,18.5641]
[1647016160649,3.04447957,80.866,80.774,24.28285646]
[1647016160846,18.5641,80.86,80.81,18.5573]
[1647016161048,18.5641,80.86,80.811,1.91061078]
[1647016161451,6.184,80.859,80.811,1.91061078]
[1647016161648,24.8138,80.858,80.811,1.91061078]
[1647016162252,24.8138,80.858,80.812,6.184]
[1647016162450,1.63140746,80.901,80.812,6.184]
[1647016162451,6.184,80.898,80.812,6.184]
[1647016162652,48.8304,80.898,80.812,9.22847957]
[1647016162849,48.8304,80.898,80.82,18.554]
[1647016163051,48.8304,80.898,80.821,6.183]
[1647016163250,48.8304,80.898,80.821,9.22747957]
[1647016163453,56.42647646,80.897,80.821,9.22747957]
[1647016163670,56.42647646,80.897,80.822,3.04447957]
[1647016164168,18.5498,80.89,80.84,18.5502]
[1647016164370,18.5498,80.89,80.822,3.04447957]
[1647016164968,18.5498,80.89,80.821,6.183]
[1647016165171,6.183,80.889,80.821,6.183]
[1647016165368,18.5555,80.87,80.821,6.183]
[1647016165570,58.90893003,80.869,80.821,6.183]
[1647016166474,58.90893003,80.869,80.831,20.28934432]
[1647016166674,24.1034,80.888,80.831,20.28934432]
[1647016167571,62.56696074,80.887,80.84,18.5507]
[1647016168175,62.56696074,80.887,80.831,20.28934432]
[1647016168573,18.5528,80.88,80.831,20.28934432]
[1647016169273,62.56696074,80.887,80.831,20.28934432]
[1647016169677,62.56696074,80.887,80.84,18.5507]
[1647016172174,62.56696074,80.887,80.821,6.183]
[1647016172375,6.183,80.886,80.821,6.183]
[1647016172576,22.7109152,80.886,80.821,6.183]
[1647016172775,33.57298634,80.886,80.821,6.183]
[1647016173074,18.5533,80.88,80.821,6.183]
[1647016173278,6.184,80.879,80.821,6.183]
[1647016173675,6.184,80.884,80.821,6.183]
[1647016174078,18.5585,80.87,80.821,6.183]
[1647016174274,57.86817815,80.869,80.821,6.183]
[1647016174878,6.184,80.868,80.76,6.45149989]
[1647016175078,48.0348,80.867,80.773,3.6235]
[1647016175276,6.186,80.866,80.788,27.42967957]
[1647016175679,48.0348,80.867,80.789,24.2390542]
[1647016176078,18.5596,80.86,80.8,18.56]
[1647016176682,6.184,80.866,80.789,24.2390542]
[1647016176879,27.38998634,80.884,80.789,24.2390542]
[1647016176880,6.184,80.884,80.801,3.04447957]
[1647016177378,1.63140746,80.914,80.81,18.5574]
[1647016177379,6.184,80.909,80.81,18.5574]
[1647016177580,6.183,80.913,80.81,18.5574]
[1647016177782,6.183,80.914,80.811,3.04447957]
[1647016177982,26.58765857,80.912,80.812,1.95441304]
[1647016178182,74.11,80.91,80.813,22.8404]
[1647016178384,18.5511,80.89,80.82,18.555]
[1647016178582,49.81290907,80.888,80.82,18.555]
[1647016178984,6.183,80.887,80.82,18.555]
[1647016179388,46.22691723,80.869,80.813,22.8404]
[1647016179683,46.22691723,80.869,80.812,1.95441304]
[1647016179883,46.22691723,80.869,80.81,18.5571]
[1647016180083,46.22691723,80.869,80.76,20.87149989]
[1647016180286,6.184,80.868,80.786,23.8846]
[1647016180483,18.5568,80.86,80.8,18.5588]
[1647016180686,18.5568,80.86,80.786,23.8846]
[1647016180885,18.5568,80.86,80.8,23.58354368]
[1647016181084,23.0086,80.867,80.8,23.58354368]
[1647016181285,23.0086,80.867,80.801,3.04447957]
[1647016181687,23.9206,80.878,80.81,18.5568]
[1647016182083,23.9206,80.878,80.811,3.04447957]
[1647016182483,50.43054768,80.877,80.811,3.04447957]
[1647016183688,50.43054768,80.877,80.82,18.5546]
[1647016183886,50.43054768,80.877,80.821,2.60992356]
[1647016184984,50.43054768,80.877,80.83,18.5515]
[1647016192196,50.43054768,80.877,80.82,18.5532]
[1647016192402,123.5,80.876,80.811,3.04447957]
[1647016192596,123.5,80.869,80.793,3.04447957]
[1647016192999,123.5,80.869,80.803,24.24589096]
[1647016193798,123.5,80.875,80.803,24.24589096]
[1647016194198,18.5587,80.86,80.803,24.24589096]
[1647016194399,55.42914202,80.858,80.804,6.185]
[1647016194608,129.684,80.857,80.804,6.185]
[1647016194799,129.684,80.857,80.776,6.184]
[1647016194998,129.684,80.857,80.769,18.2622]
[1647016195200,123.5,80.849,80.769,18.2622]
[1647016195404,47.4127,80.848,80.77,6.187]
[1647016195606,47.4127,80.848,80.77,32.27245542]
[1647016196403,47.4127,80.848,80.79,18.5588]
[1647016196603,47.4127,80.848,80.791,6.186]
[1647016197423,47.4127,80.848,80.79,18.5588]
[1647016197624,18.5615,80.84,80.78,18.5619]
[1647016197824,62.34260261,80.839,80.781,6.187]
[1647016198432,62.34260261,80.839,80.771,6.187]
[1647016198627,62.34260261,80.839,80.81,18.5551]
[1647016199130,47.4127,80.848,80.773,54.7943]
[1647016199329,7.0,80.931,80.773,54.7943]
[1647016199330,6.187,80.896,80.773,54.7943]
[1647016199528,123.5,80.894,80.774,28.29993681]
[1647016199831,47.6183,80.895,80.774,28.29993681]
[1647016199832,123.5,80.892,80.81,18.5553]
[1647016200029,57.31608383,80.889,80.81,18.5553]
[1647016200230,180.81608383,80.889,80.81,18.5553]
[1647016200528,74.11,80.888,80.801,22.7183]
[1647016200727,123.5,80.879,80.801,22.7183]
[1647016201028,6.184,80.887,80.771,23.034]
[1647016201029,123.5,80.875,80.775,3.04447957]
[1647016201230,136.92163444,80.86,80.776,28.9043]
[1647016201427,123.5,80.857,80.776,28.9043]
[1647016201629,123.5,80.855,80.776,22.7183]
[1647016201830,123.5,80.849,80.776,22.7183]
[1647016202028,123.5,80.847,80.776,22.7183]
[1647016202928,123.5,80.847,80.777,6.187]
[1647016203129,123.5,80.839,80.777,6.187]
[1647016203328,74.11,80.838,80.761,6.187]
[1647016203527,123.5,80.837,80.761,6.187]
[1647016203728,123.5,80.837,80.76,6.45149989]
[1647016203932,134.32447957,80.837,80.738,3.04447957]
[1647016204131,123.5,80.835,80.738,3.04447957]
[1647016204332,197.61,80.829,80.74,18.5722]
[1647016204530,123.5,80.827,80.739,6.189]
[1647016204730,123.5,80.823,80.739,6.189]
[1647016204939,123.5,80.808,80.739,6.189]
[1647016205136,123.5,80.806,80.739,6.189]
[1647016205336,123.5,80.804,80.739,6.189]
[1647016205538,123.5,80.802,80.739,6.189]
[1647016205747,123.5,80.789,80.739,6.189]
[1647016205938,54.52798433,80.789,80.739,6.189]
[1647016206839,24.5642,80.807,80.74,18.5724]
[1647016207039,147.3627,80.829,80.739,31.44445724]
[1647016207240,6.189,80.858,80.741,25.25545724]
[1647016207444,23.9946,80.848,80.741,25.25545724]
[1647016207640,30.1826,80.848,80.741,25.25545724]
[1647016207838,24.5816,80.857,80.81,18.5574]
[1647016208038,123.5,80.886,80.81,18.5574]
[1647016208242,123.5,80.884,80.81,18.5574]
[1647016208440,123.5,80.884,80.811,22.5146]
[1647016208641,123.5,80.884,80.807,18.4106]
[1647016208642,123.5,80.884,80.812,4.11566219]
[1647016208840,181.81193516,80.884,80.813,19.48420369]
[1647016209040,123.5,80.884,80.83,18.5419]
[1647016209241,1.63140746,80.897,80.83,18.5419]
[1647016209444,123.5,80.916,80.83,18.5419]
[1647016209641,123.5,80.914,80.831,23.5688]
[1647016209843,6.182,80.915,80.831,23.5688]
[1647016210047,65.80531013,80.914,80.832,6.70926355]
[1647016210545,6.182,80.913,80.832,6.70926355]
[1647016211043,30.9337,80.913,80.832,6.70926355]
[1647016211244,30.9337,80.913,80.84,18.5481]
[1647016211445,24.7517,80.913,80.84,18.5481]
[1647016211648,65.80531013,80.914,80.84,18.5481]
[1647016211847,65.80531013,80.914,80.841,0.25]
[1647016212044,6.182,80.913,80.841,0.25]
[1647016212445,6.182,80.913,80.861,19.48420369]
[1647016213047,65.80531013,80.914,80.861,19.48420369]
[1647016213445,65.80531013,80.914,80.824,3.6182]
[1647016214045,123.5,80.913,80.824,3.6182]
[1647016214244,65.80531013,80.914,80.824,3.6182]
[1647016214245,23.5529,80.912,80.824,3.6182]
[1647016214444,23.5529,80.912,80.84,18.5473]
[1647016214845,65.80531013,80.914,80.84,18.5473]
[1647016215045,6.182,80.945,80.841,4.93312896]
[1647016215248,1.63140746,80.958,80.842,23.7914]
[1647016215463,1.63140746,80.963,80.842,23.7914]
[1647016215745,18.5386,80.95,80.87,18.5321]
[1647016215944,64.85647984,80.949,80.871,6.8709178]
[1647016216145,123.5,80.948,80.871,6.8709178]
[1647016216346,150.01702317,80.948,80.871,6.8709178]
[1647016216545,172.67712317,80.948,80.871,6.8709178]
[1647016216746,123.5,80.946,80.88,18.5381]
[1647016217148,24.3931,80.945,80.88,18.5381]
[1647016217751,6.179,80.947,80.88,18.5381]
[1647016217950,22.6601,80.948,80.88,18.5381]
[1647016218750,6.179,80.969,80.881,4.28182749]
[1647016218950,24.3931,80.97,80.9,18.5235]
[1647016219151,1.63140746,80.988,80.901,5.72309957]
[1647016219352,1.63140746,80.999,80.902,0.25]
[1647016219550,49.65417432,80.996,80.902,19.57254944]
[1647016219951,1.63140746,81.001,80.902,19.57254944]
[1647016220157,1.63140746,81.004,80.92,18.5198]
[1647016220358,1.63140746,81.008,80.921,6.01471642]
[1647016220954,64.66424734,81.016,80.922,27.5231652]
[1647016221152,1.63140746,81.016,80.941,5.08343143]
[1647016221352,1.63140746,81.017,80.941,5.08343143]
[1647016221554,46.3051,81.037,80.942,0.25]
[1647016221953,6.174,81.043,80.942,0.25]
[1647016222155,59.62080371,81.042,80.942,7.1209178]
[1647016222359,6.173,81.058,80.942,7.1209178]
[1647016222360,6.173,81.058,80.96,18.5134]
[1647016222554,6.173,81.058,80.961,0.25]
[1647016222755,6.173,81.058,80.961,4.94083028]
[1647016223156,24.7588,81.059,80.961,4.94083028]
[1647016223455,61.12296622,81.058,80.961,4.94083028]
[1647016224162,61.12296622,81.058,80.961,4.8872186]
[1647016225857,61.12296622,81.058,80.972,18.60630278]
[1647016226055,6.172,81.075,80.973,0.25]
[1647016226256,6.171,81.099,80.973,0.25]
[1647016226554,48.0948,81.116,80.973,0.25]
[1647016226555,6.17,81.115,80.974,27.5231652]
[1647016226755,18.5058,81.11,80.975,0.25]
[1647016226959,49.60508589,81.108,80.99,18.5066]
[1647016227156,6.168,81.107,80.991,0.25]
[1647016228161,6.168,81.107,80.991,27.7731652]
[1647016228356,6.168,81.107,81.0,18.5059]
[1647016228556,6.168,81.107,81.001,12.97145282]
[1647016229157,6.168,81.107,81.001,19.84145282]
[1647016229656,49.60508589,81.108,81.001,19.84145282]
[1647016229857,49.60508589,81.108,81.02,18.5005]
[1647016230258,49.60508589,81.108,81.001,12.72145282]
[1647016230461,129.668,81.107,81.001,7.58716446]
[1647016230661,31.60743462,81.107,81.001,7.58716446]
[1647016230858,6.168,81.107,81.01,18.5039]
[1647016231080,49.60508589,81.108,81.01,18.5039]
[1647016232361,49.60508589,81.108,81.011,5.31307797]
[1647016232561,49.60508589,81.108,81.01,18.5039]
[1647016234264,49.60508589,81.108,81.011,4.02676104]
[1647016234463,49.60508589,81.108,81.031,18.60630278]
[1647016234865,6.167,81.107,81.031,18.60630278]
[1647016236669,49.60508589,81.108,81.017,18.9245]
[1647016237065,18.507,81.1,81.002,28.75862348]
[1647016237666,18.507,81.1,81.003,23.40839904]
[1647016237865,22.9337,81.099,81.003,23.40839904]
[1647016238067,18.5088,81.09,81.003,23.40839904]
[1647016238267,18.5088,81.09,80.98,38.8539]
[1647016238268,175.6336,81.089,80.98,24.4339]
[1647016238690,123.5,81.087,80.98,24.4339]
[1647016238891,6.17,81.086,80.98,24.4339]
[1647016239090,6.17,81.086,80.981,24.40249179]